bitfinex-derivatives/quotes_SOLF0:USTF0_20250110
["timestamp","ask_amount","ask_price","bid_price","bid_amount"]
[1736468270114,2.6762,186.84,186.79,2.6768]
[1736468270309,12.38317031,186.86,186.76,9.1947404]
[1736468270513,15.43887031,186.86,186.76,9.1947404]
[1736468270708,2.6766,186.82,186.77,2.677]
[1736468270904,2.6766,186.82,186.76,9.1947404]
[1736468272110,2.6766,186.82,186.78,2.677]
[1736468273512,2.6763,186.83,186.76,9.1947404]
[1736468274115,1.5409,186.85,186.77,12.38317031]
[1736468274307,12.38317031,186.91,186.8,12.38317031]
[1736468274505,6.3506,186.92,186.83,12.38317031]
[1736468274709,2.6753,186.91,186.83,12.38317031]
[1736468275218,2.6752,186.91,186.86,2.6758]
[1736468275415,3.0106,186.99,186.86,12.38317031]
[1736468275619,0.84811105,186.98,186.86,12.38317031]
[1736468275812,12.38317031,186.97,186.86,12.38317031]
[1736468276419,2.6748,186.94,186.87,2.6757]
[1736468277519,2.6752,186.91,186.85,2.676]
[1736468277715,0.21718,186.92,186.83,12.38317031]
[1736468278318,2.6753,186.9,186.84,2.6761]
[1736468281018,3.2413,186.91,186.83,12.38317031]
[1736468281419,3.2413,186.91,186.85,2.676]
[1736468281420,5.9166,186.91,186.85,2.676]
[1736468282720,5.9166,186.91,186.8,12.38317031]
[1736468282721,3.2413,186.91,186.8,12.38317031]
[1736468283023,3.2413,186.91,186.76,9.1947404]
[1736468283024,15.62447031,186.91,186.82,2.6764]
[1736468283528,2.6757,186.88,186.82,2.6764]
[1736468283714,15.62447031,186.91,186.8,12.38317031]
[1736468283920,18.29977031,186.91,186.8,12.38317031]
[1736468284118,15.62447031,186.91,186.8,12.38317031]
[1736468284320,15.62447031,186.91,186.77,12.38317031]
[1736468284623,2.676,186.86,186.77,12.38317031]
[1736468284819,3.2413,186.91,186.8,2.6767]
[1736468284820,17.18317031,186.88,186.8,2.6767]
[1736468285018,17.18317031,186.88,186.77,12.38317031]
[1736468285522,17.18317031,186.88,186.81,2.6766]
[1736468285722,2.6761,186.85,186.77,12.38317031]
[1736468285926,17.18317031,186.88,186.78,2.6769]
[1736468286223,17.18317031,186.88,186.77,12.38317031]
[1736468286624,2.6761,186.85,186.79,2.6769]
[1736468288429,2.6761,186.85,186.8,2.6767]
[1736468289122,17.18317031,186.88,186.77,12.38317031]
[1736468289123,4.8,186.88,186.77,12.38317031]
[1736468290219,4.8,186.88,186.8,2.6767]
[1736468291128,2.6761,186.85,186.8,2.6767]
[1736468292332,12.38317031,186.87,186.81,2.6765]
[1736468292333,15.05907031,186.87,186.81,2.6765]
[1736468292527,12.38317031,186.87,186.81,2.6765]
[1736468293324,12.38317031,186.87,186.77,12.38317031]
[1736468293525,12.38317031,186.84,186.74,12.38317031]
[1736468293730,12.38317031,186.84,186.68,29.2379848]
[1736468293731,3.1176,186.83,186.71,12.38317031]
[1736468293928,2.6769,186.79,186.74,2.6776]
[1736468294329,2.6768,186.8,186.71,12.38317031]
[1736468294523,4.7521,186.83,186.77,2.6771]
[1736468294725,4.7521,186.83,186.74,12.38317031]
[1736468294927,7.4284,186.83,186.79,2.6769]
[1736468295429,3.1176,186.83,186.74,12.38317031]
[1736468295651,2.6761,186.85,186.8,2.6766]
[1736468295932,4.8,186.88,186.77,12.38317031]
[1736468296131,12.38317031,186.9,186.77,12.38317031]
[1736468296433,4.78,186.89,186.8,12.38317031]
[1736468296634,2.6757,186.88,186.83,2.6763]
[1736468296833,4.78,186.89,186.8,12.38317031]
[1736468297132,4.78,186.89,186.77,12.38317031]
[1736468297333,2.6756,186.88,186.77,12.38317031]
[1736468297833,2.6756,186.88,186.82,2.6764]
[1736468298028,4.6311,186.91,186.77,12.38317031]
[1736468298233,2.9966,186.91,186.82,12.38317031]
[1736468298826,2.9966,186.91,186.87,2.6757]
[1736468299127,0.21718,186.92,186.85,12.38317031]
[1736468299431,0.21718,186.92,186.89,2.6754]
[1736468299931,0.21718,186.92,186.85,12.38317031]
[1736468300133,0.21718,186.92,186.82,12.38317031]
[1736468301933,0.21718,186.92,186.85,12.38317031]
[1736468302933,0.21718,186.92,186.9,2.6752]
[1736468303337,0.21718,186.92,186.85,12.38317031]
[1736468303835,12.60035031,186.92,186.82,12.38317031]
[1736468304036,12.60035031,186.92,186.83,2.6763]
[1736468304339,12.60035031,186.92,186.8,12.38317031]
[1736468304727,12.60035031,186.92,186.77,12.38317031]
[1736468304931,12.38317031,186.89,186.77,12.38317031]
[1736468305129,4.78,186.89,186.77,12.38317031]
[1736468305333,4.78,186.89,186.8,12.38317031]
[1736468306033,4.78,186.89,186.85,2.676]
[1736468306435,0.21718,186.92,186.83,12.38317031]
[1736468306939,2.6749,186.93,186.86,2.6758]
[1736468307140,2.6749,186.93,186.83,12.38317031]
[1736468307643,2.6751,186.92,186.83,12.38317031]
[1736468307836,12.38317031,186.95,186.83,12.38317031]
[1736468308239,2.6754,186.9,186.85,2.676]
[1736468309238,2.6751,186.92,186.76,13.97521044]
[1736468309437,3.0753,186.96,186.81,19.7989158]
[1736468309438,4.78,186.94,186.81,19.7989158]
[1736468309639,4.78,186.94,186.78,19.7989158]
[1736468309942,19.7989158,186.92,186.76,9.19521044]
[1736468310142,0.84834641,186.91,186.76,9.19521044]
[1736468310533,2.6759,186.86,186.81,2.6765]
[1736468312340,1.5094,186.9,186.76,9.19521044]
[1736468312548,2.6763,186.83,186.76,9.19521044]
[1736468313346,2.6763,186.83,186.79,2.6769]
[1736468313947,3.0622,186.88,186.78,2.677]
[1736468314248,3.0622,186.88,186.76,9.19521044]
[1736468315842,2.6763,186.84,186.79,2.6768]
[1736468316450,2.6759,186.87,186.82,2.6765]
[1736468317744,3.0622,186.88,186.76,9.19521044]
[1736468318551,19.7989158,186.86,186.76,9.19521044]
[1736468319150,0.84873301,186.85,186.7,72.20062151]
[1736468319849,0.84873301,186.85,186.73,2.6776]
[1736468320951,2.677,186.79,186.73,2.6776]
[1736468321456,2.677,186.79,186.74,2.6776]
[1736468322747,2.677,186.79,186.7,52.40170571]
[1736468322748,4.78,186.85,186.7,52.40170571]
[1736468322954,4.78,186.87,186.76,19.7989158]
[1736468323451,7.4558,186.87,186.76,19.7989158]
[1736468324050,7.4558,186.87,186.82,2.6764]
[1736468324250,1.5094,186.9,186.76,19.7989158]
[1736468324251,1.5094,186.9,186.79,19.7989158]
[1736468324442,22.8568158,186.96,186.85,2.6759]
[1736468324642,6.3494,186.95,186.85,2.6759]
[1736468324841,2.6753,186.91,186.85,2.6759]
[1736468325249,6.3494,186.95,186.85,2.6759]
[1736468325453,2.6755,186.89,186.84,2.6762]
[1736468326153,6.3494,186.95,186.82,2.6763]
[1736468326348,19.7989158,186.9,186.73,19.7989158]
[1736468326550,2.6759,186.86,186.81,2.6766]
[1736468326752,4.78,186.87,186.76,19.7989158]
[1736468328653,7.4558,186.87,186.76,19.7989158]
[1736468328854,4.78,186.87,186.8,2.6766]
[1736468329361,2.6761,186.85,186.76,19.7989158]
[1736468329950,2.6762,186.84,186.76,19.7989158]
[1736468330651,4.78,186.87,186.73,19.7989158]
[1736468330851,3.1251,186.86,186.7,19.7989158]
[1736468331055,4.6897,186.86,186.7,19.7989158]
[1736468331557,0.84875043,186.85,186.7,19.7989158]
[1736468331755,19.7989158,186.84,186.7,19.7989158]
[1736468331956,2.6773,186.77,186.73,2.6777]
[1736468332153,4.78,186.8,186.7,19.7989158]
[1736468332351,4.78,186.81,186.7,19.7989158]
[1736468332657,7.4567,186.81,186.7,19.7989158]
[1736468333153,4.78,186.81,186.7,19.7989158]
[1736468333353,2.6768,186.8,186.7,19.7989158]
[1736468333556,4.78,186.81,186.7,19.7989158]
[1736468334460,4.78,186.81,186.66,24.5789158]
[1736468334861,2.6774,186.76,186.72,2.6778]
[1736468336056,2.6772,186.77,186.73,2.6777]
[1736468336456,24.5789158,186.81,186.66,19.7989158]
[1736468337157,19.7989158,186.78,186.64,9.20054157]
[1736468337459,5.65394423,186.77,186.64,9.20054157]
[1736468337757,4.8047,186.77,186.64,9.20054157]
[1736468338154,0.84922333,186.76,186.67,2.6786]
[1736468339452,4.8047,186.77,186.64,9.20054157]
[1736468339654,19.7989158,186.75,186.64,9.20054157]
[1736468339854,4.78,186.74,186.64,9.20054157]
[1736468340062,4.8047,186.77,186.72,2.6778]
[1736468340256,4.8047,186.77,186.69,19.7989158]
[1736468340462,4.8047,186.77,186.66,19.7989158]
[1736468340663,2.6777,186.74,186.66,19.7989158]
[1736468340967,4.8047,186.77,186.66,19.7989158]
[1736468341162,3.2059,186.77,186.73,2.6777]
[1736468343462,3.2059,186.77,186.72,2.6779]
[1736468346463,5.8831,186.77,186.72,2.6779]
[1736468346663,3.2059,186.77,186.7,2.6781]
[1736468346864,3.2059,186.77,186.64,9.20054157]
[1736468347159,3.2059,186.77,186.62,52.42584739]
[1736468347160,19.7989158,186.75,186.62,52.42584739]
[1736468347356,2.6785,186.68,186.62,52.42584739]
[1736468347559,4.78,186.69,186.57,19.7989158]
[1736468347860,4.78,186.69,186.61,2.6794]
[1736468348059,24.5789158,186.69,186.54,78.27488541]
[1736468348267,5.57456959,186.68,186.51,19.7989158]
[1736468348460,2.6791,186.64,186.51,19.7989158]
[1736468349856,4.7249,186.68,186.51,19.7989158]
[1736468350057,4.7249,186.68,186.54,19.7989158]
[1736468350565,4.7249,186.68,186.57,19.7989158]
[1736468350870,9.5049,186.68,186.57,19.7989158]
[1736468351257,4.78,186.68,186.57,19.7989158]
[1736468351461,19.7989158,186.75,186.57,19.7989158]
[1736468351762,19.7989158,186.75,186.64,2.679]
[1736468351763,2.6783,186.69,186.64,2.679]
[1736468352159,4.78,186.74,186.64,2.679]
[1736468352356,2.6783,186.7,186.64,2.679]
[1736468353565,2.6783,186.69,186.64,2.679]
[1736468354163,2.6785,186.68,186.62,2.6792]
[1736468354370,4.78,186.67,186.54,19.7989158]
[1736468354869,2.6788,186.66,186.61,2.6794]
[1736468355068,4.78,186.67,186.61,2.6794]
[1736468355472,2.6788,186.66,186.61,2.6794]
[1736468355866,2.679,186.64,186.59,2.6797]
[1736468356061,4.78,186.67,186.54,19.7989158]
[1736468356572,4.78,186.67,186.6,2.6796]
[1736468357265,2.6789,186.65,186.6,2.6796]
[1736468358066,4.6064,186.68,186.61,2.6795]
[1736468358271,4.78,186.69,186.57,19.7989158]
[1736468358867,2.6785,186.68,186.63,2.6792]
[1736468359066,4.78,186.69,186.57,19.7989158]
[1736468359475,2.6785,186.68,186.6,2.6795]
[1736468359665,2.6785,186.68,186.57,19.7989158]
[1736468359863,4.78,186.69,186.57,19.7989158]
[1736468360062,4.78,186.69,186.54,19.7989158]
[1736468360273,3.1164,186.68,186.54,19.7989158]
[1736468360472,4.6622,186.68,186.54,19.7989158]
[1736468360672,2.6792,186.63,186.54,19.7989158]
[1736468361171,2.6792,186.63,186.58,2.6798]
[1736468361373,4.6622,186.68,186.58,2.6798]
[1736468361573,2.6794,186.62,186.58,2.6798]
[1736468362271,2.6792,186.64,186.6,2.6795]
[1736468362773,3.1164,186.68,186.57,19.7989158]
[1736468362973,2.6788,186.66,186.57,19.7989158]
[1736468363379,3.1164,186.68,186.57,19.7989158]
[1736468364370,2.6783,186.7,186.67,2.6786]
[1736468364682,4.78,186.74,186.6,19.7989158]
[1736468366372,19.7989158,186.72,186.57,24.5789158]
[1736468366574,1.5345,186.71,186.61,2.6795]
[1736468367077,1.5345,186.71,186.6,2.6796]
[1736468367277,1.5345,186.71,186.57,4.78]
[1736468368874,2.6786,186.67,186.61,2.6794]
[1736468369076,1.5345,186.71,186.57,4.78]
[1736468369280,19.7989158,186.69,186.54,19.7989158]
[1736468369576,19.7989158,186.69,186.57,2.68]
[1736468369577,0.84972035,186.68,186.57,2.68]
[1736468369781,4.78,186.67,186.57,2.68]
[1736468370084,2.6793,186.63,186.58,2.6799]
[1736468371078,4.78,186.67,186.58,2.6799]
[1736468371387,4.78,186.67,186.54,19.7989158]
[1736468371680,1.5345,186.71,186.6,19.7989158]
[1736468371884,4.78,186.72,186.6,19.7989158]
[1736468372680,24.5789158,186.72,186.57,19.7989158]
[1736468372881,2.6788,186.66,186.6,2.6795]
[1736468373985,2.6789,186.65,186.6,2.6795]
[1736468375787,2.6788,186.66,186.54,19.7989158]
[1736468375985,19.7989158,186.72,186.57,19.7989158]
[1736468376185,4.78,186.71,186.57,19.7989158]
[1736468376579,2.6783,186.69,186.65,2.6789]
[1736468377383,2.6782,186.7,186.57,19.7989158]
[1736468377579,4.78,186.7,186.57,19.7989158]
[1736468377882,2.991,186.73,186.63,19.7989158]
[1736468378089,1.4995,186.73,186.63,19.7989158]
[1736468378879,1.6278,186.76,186.63,19.7989158]
[1736468379187,1.6271,186.77,186.58,4.78]
[1736468379188,1.6271,186.77,186.66,19.7989158]
[1736468379384,4.3043,186.77,186.66,19.7989158]
[1736468379887,2.677,186.78,186.74,2.6775]
[1736468380089,4.78,186.79,186.74,2.6775]
[1736468380893,2.6771,186.78,186.73,2.6777]
[1736468381792,2.6774,186.76,186.66,19.7989158]
[1736468381994,6.2879,186.8,186.66,19.7989158]
[1736468382494,2.6773,186.77,186.71,2.6779]
[1736468382693,26.0868158,186.8,186.66,19.7989158]
[1736468383392,2.6775,186.75,186.7,2.6781]
[1736468383992,26.0868158,186.8,186.7,2.6781]
[1736468384192,2.6777,186.74,186.7,2.6781]
[1736468384595,2.6777,186.74,186.63,19.7989158]
[1736468384596,26.0868158,186.8,186.68,2.6785]
[1736468384898,19.7989158,186.77,186.68,2.6785]
[1736468385592,6.2879,186.8,186.63,19.7989158]
[1736468385593,19.7989158,186.79,186.63,19.7989158]
[1736468386093,2.6773,186.76,186.71,2.6779]
[1736468386306,19.7989158,186.79,186.63,19.7989158]
[1736468386593,0.84915437,186.78,186.63,19.7989158]
[1736468386799,19.7989158,186.76,186.6,72.2283335]
[1736468387002,19.7989158,186.73,186.6,52.4294177]
[1736468387293,19.7989158,186.73,186.62,2.6793]
[1736468387294,2.6786,186.68,186.62,2.6793]
[1736468387495,2.6786,186.68,186.6,52.4294177]
[1736468387898,7.9799,186.72,186.6,52.4294177]
[1736468388199,19.7989158,186.7,186.54,24.5789158]
[1736468388595,19.7989158,186.7,186.54,19.7989158]
[1736468388800,2.6793,186.63,186.57,2.68]
[1736468390096,2.6796,186.61,186.54,2.6803]
[1736468390299,23.0468158,186.64,186.53,9.20553091]
[1736468390700,2.6796,186.6,186.55,2.6803]
[1736468391399,2.6798,186.59,186.52,2.6806]
[1736468391701,2.6798,186.59,186.48,19.7989158]
[1736468391901,2.6798,186.59,186.49,1.07244356]
[1736468392300,2.6798,186.59,186.53,2.6805]
[1736468392904,2.6799,186.58,186.53,2.6805]
[1736468393606,23.0468158,186.64,186.48,19.7989158]
[1736468393807,2.6797,186.6,186.48,19.7989158]
[1736468394806,2.6797,186.6,186.54,2.6804]
[1736468396911,2.6797,186.6,186.48,19.7989158]
[1736468397207,19.7989158,186.55,186.4,7.3094962]
[1736468397407,24.5989158,186.55,186.4,27.108412]
[1736468397909,2.6807,186.53,186.4,27.108412]
[1736468398308,2.6807,186.53,186.47,2.6815]
[1736468398710,2.6808,186.52,186.47,2.6815]
[1736468399206,24.5989158,186.55,186.5,2.681]
[1736468400012,24.5989158,186.55,186.4,19.7989158]
[1736468400213,4.8507,186.54,186.37,19.7989158]
[1736468400611,19.7989158,186.52,186.37,19.7989158]
[1736468400814,19.7989158,186.52,186.34,27.108412]
[1736468401016,2.6817,186.46,186.34,27.108412]
[1736468401515,4.78,186.48,186.34,27.108412]
[1736468401812,4.78,186.48,186.34,19.7989158]
[1736468402005,2.6815,186.47,186.34,19.7989158]
[1736468402208,4.78,186.48,186.37,19.7989158]
[1736468402710,7.4615,186.48,186.43,2.682]
[1736468402911,4.78,186.48,186.34,19.7989158]
[1736468403315,2.682,186.44,186.39,2.6825]
[1736468403917,4.78,186.48,186.4,2.6824]
[1736468404117,4.78,186.48,186.37,19.7989158]
[1736468404618,7.4615,186.48,186.43,2.682]
[1736468404813,4.78,186.48,186.37,19.7989158]
[1736468405322,19.7989158,186.6,186.46,19.7989158]
[1736468405522,24.3407158,186.6,186.46,19.7989158]
[1736468406507,2.6799,186.59,186.53,2.6805]
[1736468406709,24.3407158,186.6,186.53,2.6805]
[1736468407719,2.6798,186.59,186.53,2.6805]
[1736468407917,24.3407158,186.6,186.55,2.6803]
[1736468408116,3.0476,186.6,186.49,19.7989158]
[1736468408417,3.0476,186.6,186.57,2.68]
[1736468408820,3.0476,186.6,186.49,19.7989158]
[1736468409123,2.6799,186.58,186.46,19.7989158]
[1736468409624,2.6798,186.59,186.53,2.6806]
[1736468409922,3.0476,186.6,186.49,19.7989158]
[1736468410121,5.7272,186.6,186.54,2.6804]
[1736468410313,3.0476,186.6,186.49,19.7989158]
[1736468410715,3.0476,186.6,186.55,2.6803]
[1736468411122,3.0476,186.6,186.49,19.7989158]
[1736468411426,4.8,186.72,186.58,19.7989158]
[1736468411622,2.42643991,186.71,186.58,19.7989158]
[1736468411820,19.7989158,186.67,186.54,4.8]
[1736468412124,19.7989158,186.7,186.54,4.8]
[1736468412320,0.84963254,186.69,186.55,19.7989158]
[1736468412624,19.7989158,186.7,186.55,19.7989158]
[1736468413026,2.6789,186.66,186.55,19.7989158]
[1736468413725,2.6789,186.66,186.59,2.6797]
[1736468414427,2.6789,186.66,186.6,2.6795]
[1736468414622,19.7989158,186.7,186.55,19.7989158]
[1736468414828,4.8,186.7,186.64,2.679]
[1736468415128,1.5769,186.71,186.58,19.7989158]
[1736468415726,1.5769,186.71,186.55,19.7989158]
[1736468415924,21.49802577,186.7,186.55,19.7989158]
[1736468416227,20.64847079,186.7,186.55,19.7989158]
[1736468416619,2.6786,186.67,186.59,2.6797]
[1736468416820,2.6786,186.67,186.55,19.7989158]
[1736468417224,19.7989158,186.67,186.52,19.7989158]
[1736468418018,2.6795,186.62,186.57,2.68]
[1736468418229,2.6795,186.62,186.52,19.7989158]
[1736468418829,3.0576,186.64,186.49,24.5989158]
[1736468419131,1.5001,186.63,186.49,24.5989158]
[1736468419321,5.7368,186.64,186.52,19.7989158]
[1736468419526,4.8,186.65,186.55,19.7989158]
[1736468419721,4.8,186.7,186.55,19.7989158]
[1736468419928,7.4782,186.7,186.58,19.7989158]
[1736468420129,2.6782,186.7,186.58,19.7989158]
[1736468420527,2.6784,186.69,186.64,2.679]
[1736468420929,4.5577,186.72,186.61,19.7989158]
[1736468421131,7.2356,186.72,186.67,2.6786]
[1736468421633,4.5577,186.72,186.61,19.7989158]
[1736468421936,4.5577,186.72,186.58,19.7989158]
[1736468422338,2.6783,186.7,186.64,2.679]
[1736468423035,2.6781,186.71,186.66,2.6786]
[1736468423232,4.5577,186.72,186.61,19.7989158]
[1736468424831,2.6784,186.69,186.6,2.6795]
[1736468425030,4.5577,186.72,186.58,19.7989158]
[1736468426129,2.6784,186.69,186.58,19.7989158]
[1736468426829,2.6784,186.69,186.63,2.6791]
[1736468427029,2.6788,186.66,186.55,19.7989158]
[1736468427234,2.6788,186.66,186.6,2.6795]
[1736468427434,19.7989158,186.7,186.6,2.6795]
[1736468427832,19.7989158,186.67,186.58,2.6798]
[1736468428031,4.8,186.66,186.52,29.00517016]
[1736468428433,4.8,186.66,186.55,2.6803]
[1736468429138,2.6796,186.6,186.55,2.6803]
[1736468429327,4.8,186.66,186.52,29.00517016]
[1736468429639,2.6789,186.65,186.52,29.00517016]
[1736468429832,2.6789,186.65,186.55,19.7989158]
[1736468430041,4.8,186.66,186.61,2.6794]
[1736468430232,7.4788,186.66,186.61,2.6794]
[1736468430434,4.8,186.66,186.55,19.7989158]
[1736468430639,4.8,186.66,186.61,2.6794]
[1736468430831,4.8,186.66,186.52,29.00517016]
[1736468431036,4.8,186.66,186.55,2.6803]
[1736468431237,4.8,186.66,186.52,29.00517016]
[1736468431436,2.6796,186.61,186.52,29.00517016]
[1736468432237,2.6796,186.6,186.52,29.00517016]
[1736468432938,2.6796,186.6,186.55,2.6802]
[1736468433332,2.6795,186.62,186.57,2.68]
[1736468433531,4.8,186.66,186.55,19.7989158]
[1736468434031,2.6791,186.64,186.55,19.7989158]
[1736468434633,2.6792,186.63,186.59,2.6796]
[1736468435233,2.6793,186.62,186.55,19.7989158]
[1736468435438,2.6793,186.62,186.57,2.68]
[1736468435639,2.6793,186.62,186.52,29.00517016]
[1736468435945,2.6793,186.62,186.58,2.6798]
[1736468436240,2.6793,186.62,186.52,29.00517016]
[1736468436443,4.8,186.66,186.56,2.6801]
[1736468436643,4.8,186.66,186.52,29.00517016]
[1736468436844,2.6796,186.61,186.52,29.00517016]
[1736468437039,2.6796,186.61,186.56,2.6801]
[1736468437842,2.6796,186.61,186.52,29.00517016]
[1736468439136,2.6793,186.63,186.52,29.00517016]
[1736468439348,19.7989158,186.7,186.55,19.7989158]
[1736468439548,4.78,186.68,186.62,2.6792]
[1736468439844,2.6789,186.66,186.62,2.6792]
[1736468440045,2.6789,186.66,186.55,19.7989158]
[1736468440343,2.6789,186.66,186.63,2.6792]
[1736468441338,4.78,186.7,186.58,19.7989158]
[1736468441540,4.78,186.7,186.64,2.6789]
[1736468441751,4.78,186.71,186.64,2.6789]
[1736468442347,2.6784,186.69,186.64,2.6789]
[1736468446150,9.3377,186.72,186.64,2.6789]
[1736468446351,2.6785,186.68,186.64,2.6789]
[1736468446852,9.3377,186.72,186.58,19.7989158]
[1736468447051,149.22063164,186.78,186.64,19.7989158]
[1736468447247,3.96234139,186.77,186.64,19.7989158]
[1736468447555,143.53104879,186.78,186.7,19.7989158]
[1736468448156,3.1131,186.82,186.7,19.7989158]
[1736468448855,143.53104879,186.86,186.73,19.7989158]
[1736468449052,143.53104879,186.86,186.76,19.7989158]
[1736468449247,143.53104879,186.86,186.83,2.6763]
[1736468449557,4.7751,186.89,186.76,19.7989158]
[1736468449951,4.7751,186.89,186.73,19.7989158]
[1736468450154,19.7989158,186.88,186.73,19.7989158]
[1736468450450,2.6759,186.87,186.8,2.6766]
[1736468451450,2.676,186.86,186.8,2.6766]
[1736468451748,4.7751,186.89,186.76,19.7989158]
[1736468452552,2.6758,186.87,186.76,19.7989158]
[1736468452958,4.7751,186.89,186.76,19.7989158]
[1736468453756,4.7751,186.89,186.8,2.6766]
[1736468453757,2.6758,186.87,186.8,2.6766]
[1736468454255,2.6758,186.87,186.76,19.7989158]
[1736468454849,4.7751,186.89,186.76,19.7989158]
[1736468455057,2.6759,186.86,186.8,2.6766]
[1736468455258,4.7751,186.89,186.76,19.7989158]
[1736468455460,2.6762,186.85,186.76,19.7989158]
[1736468456860,2.6762,186.85,186.78,2.6769]
[1736468457059,2.676,186.86,186.76,19.7989158]
[1736468457260,4.7751,186.89,186.76,19.7989158]
[1736468457560,2.676,186.86,186.8,2.6766]
[1736468458155,2.6761,186.85,186.8,2.6766]
[1736468458362,4.7751,186.89,186.73,19.7989158]
[1736468458860,4.7751,186.89,186.76,19.7989158]
[1736468459858,2.6758,186.87,186.81,2.6765]
[1736468460163,83.83861,186.95,186.67,52.40797987]
[1736468460164,83.83861,186.95,186.79,19.7989158]
[1736468460357,8.87431184,186.94,186.79,19.7989158]
[1736468460559,2.6756,186.88,186.83,2.6763]
[1736468460760,8.0259,186.94,186.79,19.7989158]
[1736468460962,8.0259,186.94,186.85,2.676]
[1736468460963,2.6753,186.91,186.85,2.676]
[1736468461262,0.21861,186.95,186.88,19.7989158]
[1736468462463,1e-05,186.95,186.91,19.7989158]
[1736468463265,1e-05,186.95,186.87,19.7989158]
[1736468463671,1e-05,186.95,186.9,19.7989158]
[1736468464168,1e-05,186.95,186.94,2.6747]
[1736468467562,2.6734,187.04,186.99,2.6739]
[1736468468059,3.2723,187.07,186.93,19.7989158]
[1736468468660,1.5256,187.06,186.95,2.6745]
[1736468468863,0.84789837,187.05,186.95,2.6745]
[1736468469063,20.64681417,187.05,186.91,4.78]
[1736468469259,19.7989158,187.05,186.93,2.6749]
[1736468469466,19.7989158,187.05,186.87,19.7989158]
[1736468469467,0.84796719,187.04,186.87,19.7989158]
[1736468470062,2.674,186.99,186.87,19.7989158]
[1736468470668,2.674,186.99,186.94,2.6747]
[1736468472666,2.6744,186.97,186.91,2.6751]
[1736468472964,19.7989158,186.99,186.84,19.7989158]
[1736468473165,1.6188,186.96,186.84,19.7989158]
[1736468473369,2.6749,186.94,186.89,2.6753]
[1736468474273,1.6188,186.96,186.82,9.19164496]
[1736468474673,2.6751,186.92,186.86,2.6758]
[1736468475369,4.78,186.94,186.84,19.7989158]
[1736468476069,4.78,186.94,186.9,2.6752]
[1736468476467,7.4547,186.94,186.9,2.6752]
[1736468476671,4.78,186.94,186.87,2.6757]
[1736468476969,4.78,186.94,186.82,9.19164496]
[1736468477170,2.6753,186.91,186.82,9.19164496]
[1736468477368,4.78,186.94,186.82,9.19164496]
[1736468477770,2.6752,186.91,186.82,9.19164496]
[1736468478663,2.6752,186.91,186.84,2.6761]
[1736468478866,2.6752,186.91,186.82,9.19164496]
[1736468479267,2.6756,186.89,186.82,9.19164496]
[1736468479677,24.5789158,186.94,186.82,11.86794496]
[1736468479871,19.7989158,186.91,186.82,9.19164496]
[1736468480066,19.7989158,186.91,186.77,52.37984043]
[1736468480067,1.5044,186.9,186.77,52.37984043]
[1736468480673,2.6759,186.87,186.82,2.6764]
[1736468481669,1.5044,186.9,186.82,2.6764]
[1736468481873,2.6759,186.86,186.82,2.6764]
[1736468482267,4.76,186.87,186.77,64.75902547]
[1736468482472,1.5175,186.86,186.77,64.75902547]
[1736468482873,2.6762,186.84,186.79,2.6769]
[1736468483073,13.89668504,186.86,186.79,2.6769]
[1736468484174,2.6762,186.84,186.79,2.6769]
[1736468484375,13.89668504,186.86,186.79,2.6769]
[1736468484576,13.89668504,186.86,186.77,2.6771]
[1736468484577,2.6763,186.84,186.77,2.6771]
[1736468484777,13.89668504,186.86,186.74,12.37918504]
[1736468485275,2.6763,186.83,186.78,2.6769]
[1736468486379,2.6761,186.85,186.75,12.37918504]
[1736468486570,13.89668504,186.86,186.75,12.37918504]
[1736468486872,13.89668504,186.86,186.77,2.6772]
[1736468487074,12.37918504,186.83,186.72,12.37918504]
[1736468487381,1.5836,186.82,186.73,2.6777]
[1736468487772,1.5219,186.81,186.73,2.6777]
[1736468488177,2.6772,186.78,186.73,2.6777]
[1736468488682,1.5219,186.81,186.72,12.37918504]
[1736468488980,2.677,186.78,186.72,12.37918504]